bitfinex-derivatives/quotes_ETHF0:USTF0_20250726
["timestamp","ask_amount","ask_price","bid_price","bid_amount"]
[1753530204171,6.87846,3741.7,3741.6,6.1743]
[1753530204777,8.88036,3741.7,3741.6,6.1743]
[1753530208084,3.74216,3741.7,3741.6,6.1743]
[1753530208483,3.2078,3741.7,3741.6,6.70867]
[1753530209192,3.74216,3741.7,3741.6,6.1743]
[1753530209690,0.53435,3741.8,3741.7,6.70866]
[1753530210280,0.53435,3741.8,3741.7,6.1743]
[1753530210486,4.4655,3741.4,3740.9,2.2763]
[1753530210690,5.57464,3741.1,3741.0,6.2703]
[1753530210886,8.78244,3741.1,3741.0,6.2703]
[1753530211695,0.53444,3741.1,3741.0,6.2703]
[1753530212095,1.11684,3741.1,3741.0,6.2703]
[1753530212396,5.58264,3741.1,3741.0,6.2703]
[1753530213094,4.50614,3741.1,3741.0,6.2703]
[1753530214095,5.58264,3741.1,3741.0,2.4485]
[1753530214496,5.58269,3740.8,3740.7,6.2703]
[1753530214896,0.5824,3740.8,3740.7,6.8048]
[1753530215292,1.11689,3740.8,3740.7,6.8048]
[1753530215495,0.5824,3740.8,3740.7,6.8048]
[1753530215891,0.5824,3740.8,3740.1,3.2078]
[1753530215892,0.53457,3740.2,3740.1,3.2078]
[1753530216092,2.5902,3739.7,3739.5,2.9191]
[1753530216294,2.458,3739.8,3739.3,4.1188]
[1753530216295,2.99269,3739.4,3739.3,3.3512]
[1753530216494,2.99269,3739.4,3739.3,6.2703]
[1753530216495,4.50639,3739.4,3739.3,6.2703]
[1753530216997,7.71419,3739.4,3739.3,6.2703]
[1753530221196,0.5824,3739.0,3738.9,17.61945]
[1753530221396,0.5824,3739.0,3738.9,19.48105]
[1753530221693,1.69461,3739.3,3739.2,6.2703]
[1753530221896,1.11711,3739.3,3739.2,6.2703]
[1753530222288,0.5824,3739.3,3739.2,6.2703]
[1753530222596,1.1171,3739.3,3739.2,6.2703]
[1753530222794,3.5848,3739.3,3739.2,6.2703]
[1753530223992,3.0501,3739.3,3739.2,6.80501]
[1753530224199,3.0355,3739.6,3739.5,2.4402]
[1753530224399,4.50636,3739.6,3739.5,6.2703]
[1753530224602,5.58286,3739.6,3739.5,6.2703]
[1753530228292,0.5824,3739.6,3739.5,6.80497]
[1753530228498,1.11706,3739.6,3739.5,6.2703]
[1753530228696,2.63076,3739.6,3739.5,6.2703]
[1753530229099,5.58286,3739.6,3739.5,6.2703]
[1753530229300,0.5824,3739.6,3739.5,6.80497]
[1753530229500,0.5824,3739.6,3739.5,6.2703]
[1753530229999,0.5824,3739.6,3739.5,20.37497]
[1753530230201,1.11706,3739.6,3739.5,19.8403]
[1753530230400,0.5824,3739.6,3739.5,20.37497]
[1753530230703,6.79252,3739.9,3739.8,2.4402]
[1753530230902,6.79252,3739.9,3739.8,6.2703]
[1753530231202,8.79062,3739.9,3739.8,6.2703]
[1753530231398,5.3217,3739.9,3739.8,6.2703]
[1753530231599,8.256,3739.9,3739.8,6.2703]
[1753530231801,3.0501,3739.9,3739.8,6.80493]
[1753530232197,1.6589,3740.6,3740.5,2.4402]
[1753530232403,2.0961,3740.6,3740.5,6.2703]
[1753530232601,0.5824,3740.6,3740.5,6.80483]
[1753530237012,1.1599,3740.6,3740.5,6.80483]
[1753530237507,2.0127,3740.9,3739.7,1.33661]
[1753530237508,0.9362,3740.0,3739.7,2.2763]
[1753530237708,4.64663,3739.8,3739.7,18.2798]
[1753530237906,5.58283,3739.8,3739.7,19.8253]
[1753530239211,5.58283,3739.8,3739.7,13.555]
[1753530239611,5.58283,3739.8,3739.7,15.1088]
[1753530239814,5.58283,3739.8,3739.7,17.549]
[1753530240014,5.58283,3739.8,3739.7,18.8466]
[1753530240517,5.58283,3739.8,3739.7,13.555]
[1753530243022,0.5824,3739.8,3739.7,19.7467]
[1753530243223,8.80549,3740.1,3740.0,3.7656]
[1753530243423,3.03641,3739.9,3739.8,3.9545]
[1753530243727,5.0631,3739.2,3739.1,3.7237]
[1753530243921,5.0631,3739.2,3739.0,13.547]
[1753530244218,5.0631,3739.1,3739.0,17.5005]
[1753530244425,5.0631,3739.1,3739.0,19.7377]
[1753530244624,5.59783,3739.1,3739.0,19.7377]
[1753530244824,4.52383,3739.1,3739.0,19.7377]
[1753530245416,5.59783,3739.1,3739.0,19.7377]
[1753530245925,5.59783,3739.1,3739.0,15.2577]
[1753530246326,4.52383,3739.1,3739.0,15.2577]
[1753530246526,2.69493,3739.1,3739.0,15.2577]
[1753530246729,1.16053,3739.1,3739.0,15.2577]
[1753530247429,3.60693,3739.1,3739.0,15.2577]
[1753530247729,0.53472,3739.2,3739.1,2.468]
[1753530247930,0.53472,3739.2,3739.1,6.1917]
[1753530248230,3.2078,3739.4,3739.3,6.1917]
[1753530248426,3.74249,3739.4,3739.3,6.1917]
[1753530249130,3.2078,3739.4,3739.3,6.7264]
[1753530249333,3.2078,3739.4,3739.3,6.1917]
[1753530250024,0.53466,3739.6,3739.3,3.0027]
[1753530250223,0.53465,3739.7,3739.6,6.1917]
[1753530250423,1.4873,3739.9,3739.7,3.7237]
[1753530250624,0.6258,3739.9,3739.8,6.1917]
[1753530250828,1.16041,3739.9,3739.8,6.1917]
[1753530251224,1.73571,3739.9,3739.8,6.1917]
[1753530251427,3.9891,3740.1,3740.0,4.7052]
[1753530251637,0.6258,3740.1,3740.0,6.1917]
[1753530251931,0.6258,3740.1,3740.0,6.7263]
[1753530252527,2.02185,3740.4,3740.1,0.53457]
[1753530252835,4.36812,3740.6,3740.5,2.468]
[1753530253132,4.36812,3740.6,3740.5,6.1917]
[1753530253629,3.8336,3740.6,3740.5,6.1917]
[1753530253831,3.8336,3740.6,3740.5,6.72623]
[1753530254030,3.8336,3740.6,3740.5,6.1917]
[1753530254031,4.36811,3740.6,3740.5,6.1917]
[1753530254227,4.94341,3740.6,3740.5,19.7217]
[1753530254736,5.85541,3740.6,3740.5,19.7217]
[1753530254934,3.60671,3740.6,3740.5,19.7217]
[1753530255129,0.6258,3740.6,3740.5,20.25623]
[1753530255533,1.16031,3740.6,3740.5,19.7217]
[1753530255836,0.6258,3740.6,3740.5,19.7217]
[1753530256339,1.16031,3740.6,3740.5,19.7217]
[1753530256534,1.73561,3740.6,3740.5,19.7217]
[1753530257135,2.64761,3740.6,3740.5,19.7217]
[1753530257533,3.60671,3740.6,3740.5,19.7217]
[1753530258036,5.59761,3740.6,3740.5,19.7217]
[1753530259035,5.0631,3740.6,3740.5,19.7217]
[1753530259238,4.52361,3740.6,3740.5,19.7217]
[1753530259836,5.59761,3740.6,3740.5,19.7217]
[1753530260528,5.59761,3740.6,3739.8,2.468]
[1753530260529,5.0631,3739.9,3739.8,2.468]
[1753530260735,3.03646,3739.6,3739.5,25.571]
[1753530260939,5.59776,3739.6,3739.5,39.087]
[1753530261239,5.59776,3739.6,3739.5,42.8107]
[1753530261440,0.6258,3739.6,3739.5,43.34537]
[1753530261639,5.5977,3740.0,3739.9,6.1917]
[1753530262137,0.53466,3739.6,3739.5,38.8562]
[1753530262337,5.59776,3739.6,3739.5,40.3427]
[1753530263137,5.59776,3739.6,3739.5,19.7077]
[1753530264135,5.0631,3739.6,3739.5,20.24237]
[1753530264336,5.0631,3739.6,3739.5,19.7077]
[1753530264844,5.59776,3739.6,3739.5,19.7077]
[1753530265737,5.0631,3739.6,3739.5,20.24237]
[1753530266145,5.59776,3739.6,3739.5,20.24237]
[1753530266346,5.59776,3739.6,3739.5,19.7077]
[1753530266845,5.59776,3739.6,3739.5,20.24237]
[1753530267139,5.0631,3739.6,3739.5,20.24237]
[1753530267350,5.59776,3739.6,3739.5,20.24237]
[1753530267646,5.0631,3739.6,3739.5,20.24237]
[1753530268148,3.9891,3739.6,3739.5,20.24237]
[1753530268448,0.6258,3739.6,3739.5,20.24237]
[1753530269046,2.1131,3739.8,3739.7,3.00264]
[1753530269343,2.64773,3739.8,3739.7,6.1917]
[1753530270549,3.60683,3739.8,3739.7,6.1917]
[1753530270850,4.68233,3739.8,3739.7,6.1917]
[1753530271148,1.1866,3740.0,3739.9,2.5215]
[1753530271342,0.61,3740.0,3739.9,6.2683]
[1753530271546,0.53459,3740.1,3740.0,6.2683]
[1753530271749,0.61,3740.2,3740.1,4.3618]
[1753530271948,0.61,3740.2,3740.1,19.41769]
[1753530272348,2.0615,3740.2,3740.1,20.30089]
[1753530272950,0.53456,3740.3,3740.1,20.30089]
[1753530273152,8.8342,3740.7,3740.6,6.2683]
[1753530273751,7.7587,3740.7,3740.6,6.2683]
[1753530274649,8.8342,3740.7,3740.6,6.2683]
[1753530275050,3.2078,3740.7,3740.6,6.2683]
[1753530275251,4.9289,3740.7,3740.6,6.2683]
[1753530275451,5.9642,3740.7,3740.6,6.2683]
[1753530275752,7.9146,3740.7,3740.6,6.2683]
[1753530275955,8.8342,3740.7,3740.6,6.2683]
[1753530276556,7.7587,3740.7,3740.6,6.2683]
[1753530277855,6.3046,3740.7,3740.6,6.80281]
[1753530278162,3.2078,3740.7,3740.6,6.80281]
[1753530278658,4.3523,3740.7,3740.6,6.2683]
[1753530278853,5.8038,3740.7,3740.6,6.2683]
[1753530279056,6.8391,3740.7,3740.6,6.2683]
[1753530279255,7.9117,3740.7,3740.6,6.2683]
[1753530279454,8.8313,3740.7,3740.6,6.2683]
[1753530280561,8.8313,3740.7,3740.6,19.7503]
[1753530281160,8.8313,3740.7,3740.6,20.28481]
[1753530281363,7.7587,3740.7,3740.6,20.28481]
[1753530281554,7.2242,3740.7,3740.6,20.28481]
[1753530281861,3.2078,3740.7,3740.6,20.28481]
[1753530283159,4.3523,3740.7,3740.6,19.7503]
[1753530283356,4.9262,3740.7,3740.6,19.7503]
[1753530283755,8.8273,3740.7,3740.6,19.7503]
[1753530284558,7.2202,3740.7,3740.6,20.28481]
[1753530284757,5.427,3740.7,3740.6,20.28481]
[1753530284959,5.9615,3740.7,3740.6,19.7503]
[1753530286056,6.8364,3740.7,3740.6,20.28481]
[1753530286460,3.6286,3740.7,3740.6,20.28481]
[1753530287063,3.0941,3740.7,3740.6,20.28481]
[1753530287459,1.6826,3740.9,3740.6,17.2288]
[1753530287663,1.6826,3740.9,3740.8,6.2683]
[1753530287664,3.66587,3740.9,3740.8,6.2683]
[1753530288058,5.61947,3740.9,3740.8,6.2683]
[1753530290160,3.0981,3740.7,3740.6,13.482]
[1753530290359,5.6195,3740.7,3740.6,15.0032]
[1753530290563,5.6195,3740.7,3740.6,19.7503]
[1753530291958,2.0588,3740.7,3740.6,20.28481]
[1753530292165,0.53449,3740.8,3740.7,3.05599]
[1753530292366,1.14449,3740.8,3740.7,6.2683]
[1753530292564,0.61,3740.8,3740.7,6.8028]
[1753530292766,0.61,3741.0,3740.9,6.80277]
[1753530293271,2.0588,3741.0,3740.9,6.80277]
[1753530293768,3.8178,3741.3,3741.2,6.80273]
[1753530293965,3.2078,3741.3,3741.2,6.80273]
[1753530295772,2.0588,3741.6,3741.5,3.05588]
[1753530295978,3.2078,3741.7,3741.6,3.05587]
[1753530296279,0.81,3741.9,3741.8,5.46024]
[1753530296478,0.2,3741.9,3741.8,6.80264]
[1753530297078,5.81932,3741.9,3741.8,19.7193]
[1753530297283,5.81932,3741.9,3741.8,17.1978]
[1753530297485,5.81932,3741.9,3741.8,19.7193]
[1753530297790,0.81,3741.9,3741.8,20.25364]
[1753530298084,0.2,3741.9,3741.8,20.25364]
[1753530301681,1.0753,3742.6,3741.8,24.7193]
[1753530301879,0.6003,3742.6,3742.5,6.2511]
[1753530302078,0.6003,3742.6,3742.5,20.22634]
[1753530302273,0.6003,3742.8,3742.7,0.615]
[1753530302478,0.6003,3742.8,3742.7,6.78531]
[1753530303180,0.9969,3743.4,3743.2,0.53413]
[1753530303381,4.1375,3743.3,3743.2,3.08753]
[1753530303575,3.0622,3743.3,3743.2,16.52453]
[1753530303780,2.1736,3743.3,3743.2,16.52453]
[1753530303980,0.6003,3743.3,3743.2,20.22223]
[1753530304183,0.6003,3743.3,3743.2,19.6881]
[1753530304886,1.0753,3743.6,3743.4,2.5534]
[1753530305087,2.252,3743.6,3743.5,6.2511]
[1753530305287,0.6003,3743.6,3743.5,6.2511]
[1753530306287,1.42266,3743.8,3743.7,2.5534]
[1753530306288,0.6003,3743.8,3743.7,2.5534]
[1753530306490,0.6003,3743.8,3743.7,6.78517]
[1753530307686,5.319902,3743.8,3743.7,6.78517]
[1753530309779,4.719602,3743.8,3743.7,6.78517]
[1753530311788,1.1767,3744.4,3744.3,4.8272]
[1753530311979,0.6003,3744.4,3744.3,20.20308]
[1753530312385,1.4889,3744.6,3744.5,6.78505]
[1753530312691,0.6003,3744.6,3744.5,29.86505]
[1753530313590,8.2527,3744.9,3744.8,6.2511]
[1753530313793,3.8081,3744.9,3744.8,20.20001]
[1753530314291,5.0449,3745.2,3744.8,3.2078]
[1753530314490,1.5077,3744.6,3744.5,23.08]
[1753530314793,5.57884,3744.6,3744.5,36.493]
[1753530314983,8.857102,3744.9,3744.8,2.5534]
[1753530315186,9.764502,3744.9,3744.8,6.78501]
[1753530315385,8.689202,3744.9,3744.8,6.78501]
[1753530315581,5.319902,3744.9,3744.8,6.78501]
[1753530315783,10.298402,3744.9,3744.8,6.2511]
[1753530315988,10.298402,3744.9,3744.8,17.30521]
[1753530315989,9.764502,3744.9,3744.8,17.30521]
[1753530316189,10.298402,3744.9,3744.8,16.7713]
[1753530316386,0.53393,3744.7,3744.6,0.9011]
[1753530316685,4.50354,3744.6,3744.5,23.08]
[1753530316884,4.50354,3744.6,3744.5,36.488]
[1753530317094,5.57884,3744.6,3744.5,36.488]
[1753530317488,5.57884,3744.6,3744.5,23.08]
[1753530317690,5.57884,3744.6,3744.5,36.488]
[1753530319290,5.57884,3744.6,3744.5,37.9119]
[1753530319791,5.0449,3744.6,3744.5,40.1857]
[1753530320188,5.0449,3744.6,3744.5,40.71965]
[1753530320383,9.764502,3744.6,3744.5,40.71965]
[1753530320989,8.689202,3744.6,3744.5,40.71965]
[1753530321793,9.762702,3744.6,3744.5,40.71965]
[1753530321997,10.296642,3744.6,3744.5,40.1857]
[1753530323199,9.762702,3744.6,3744.5,40.71965]
[1753530323399,10.296642,3744.6,3744.5,40.1857]
[1753530323900,10.296642,3744.6,3744.5,36.476]
[1753530324698,10.296642,3744.6,3744.5,36.474]
[1753530326695,10.296642,3744.6,3744.5,23.08]
[1753530326896,0.53404,3743.9,3743.8,1.4239]
[1753530327102,0.53407,3743.7,3743.6,2.0389]
[1753530327308,3.2078,3744.1,3743.6,15.9424]
[1753530327500,0.53406,3743.8,3743.7,3.9773]
[1753530327800,0.53406,3743.8,3743.7,6.2511]
[1753530328003,3.2078,3744.1,3743.7,6.2511]
[1753530328004,0.53405,3743.9,3743.7,3.08747]
[1753530328203,0.53405,3743.9,3743.8,6.2511]
[1753530328403,0.81426759,3744.0,3743.8,6.78515]
[1753530328699,0.81426759,3743.9,3743.8,6.78515]
[1753530328897,3.2078,3744.1,3743.9,2.5534]
[1753530329094,0.81443678,3744.0,3743.9,2.5534]
[1753530329296,1.34846678,3744.0,3743.9,2.5534]
[1753530329798,1.34846678,3744.0,3743.9,4.9192]
[1753530330002,1.34846678,3744.0,3743.9,6.2888]
[1753530330195,0.81443678,3744.0,3743.9,6.2888]
[1753530330400,5.53403878,3744.0,3743.9,6.82284]
[1753530330603,5.253632,3744.0,3743.9,6.2888]
[1753530331199,5.253632,3744.0,3743.9,4.9192]
[1753530331998,5.253632,3744.0,3743.9,0.9419]
[1753530332202,5.253632,3744.0,3743.9,14.3259]
[1753530333408,6.06292076,3744.0,3743.9,14.3259]
[1753530334904,6.06292076,3744.0,3743.9,19.6031]
[1753530335307,5.52889076,3744.0,3743.9,19.6031]
[1753530335610,5.52889076,3744.0,3743.9,20.13714]
[1753530336810,6.06292076,3744.0,3743.9,19.6031]
[1753530337311,5.52889076,3744.0,3743.9,20.13714]
[1753530337513,6.06292076,3744.0,3743.9,19.6031]
[1753530337906,9.27072076,3744.0,3743.9,20.13714]
[1753530338210,8.73669076,3744.0,3743.9,20.13714]
[1753530339214,9.27072076,3744.0,3743.9,19.6031]
[1753530339811,8.73669076,3744.0,3743.9,20.13714]
[1753530340311,9.27072076,3744.0,3743.9,20.13714]
[1753530340514,8.73669076,3744.0,3743.9,20.13714]
[1753530340913,9.27072076,3744.0,3743.9,20.13714]
[1753530342416,8.73669076,3744.0,3743.9,20.13714]
[1753530342811,9.27072076,3744.0,3743.9,20.13714]
[1753530343212,9.27072076,3744.0,3743.9,19.6031]
[1753530345414,8.461432,3744.0,3743.9,19.6031]
[1753530345617,9.26400731,3744.0,3743.9,20.13714]
[1753530346118,8.461432,3744.0,3743.9,20.13714]
[1753530346822,7.927402,3744.0,3743.9,20.13714]
[1753530347019,8.461432,3744.0,3743.9,20.13714]
[1753530348123,8.461432,3744.0,3743.9,19.6031]
[1753530348620,7.927402,3744.0,3743.9,20.13714]
[1753530348821,8.461432,3744.0,3743.9,20.13714]
[1753530349827,8.461432,3744.0,3743.9,19.6031]
[1753530350326,8.461432,3744.0,3743.9,2.4252]
[1753530351024,8.461432,3744.0,3743.9,6.2191]
[1753530351423,8.461432,3744.0,3743.9,6.75314]
[1753530352023,7.927402,3744.0,3743.9,6.75314]
[1753530352425,4.719602,3744.0,3743.9,6.75314]
[1753530352924,5.392,3744.9,3744.7,2.4243]
[1753530352925,5.5274,3744.8,3744.7,2.4243]
[1753530353116,6.06131,3744.8,3744.7,6.1608]
[1753530353320,5.5274,3744.8,3744.7,6.1608]
[1753530353521,5.5274,3744.8,3744.7,6.69473]
[1753530353725,6.06131,3744.8,3744.7,6.1608]
[1753530354729,3.74171,3744.8,3744.7,6.1608]
[1753530354922,3.2078,3744.8,3744.7,6.69472]
[1753530356424,7.927402,3744.8,3744.7,6.1608]
[1753530356729,7.927402,3744.8,3744.7,6.69473]
[1753530357223,7.927402,3744.8,3744.7,6.1608]
[1753530357424,8.461312,3744.8,3744.7,6.1608]
[1753530357929,10.780912,3744.8,3744.7,6.1608]
[1753530358329,8.461312,3744.8,3744.7,6.1608]
[1753530358628,7.927402,3744.8,3744.7,6.69473]
[1753530360228,7.927402,3744.8,3744.7,6.1608]
[1753530360527,10.119902,3744.8,3744.7,2.3669]
[1753530360728,2.231,3744.1,3744.0,25.4318]
[1753530360931,2.76501,3744.1,3744.0,38.7688]
[1753530361932,2.76501,3744.1,3744.0,19.4034]
[1753530364632,2.231,3744.1,3743.7,1.4451]
[1753530364827,2.76505,3743.8,3743.7,4.7792]
[1753530365028,2.76505,3743.8,3743.7,19.3974]
[1753530365326,7.484652,3743.8,3743.7,18.1102]
[1753530366731,7.484652,3743.8,3743.7,19.3974]
[1753530369433,5.253652,3743.8,3743.7,19.3974]
[1753530369945,4.719602,3743.8,3743.7,19.93147]
[1753530370427,5.253652,3743.8,3743.7,19.93147]
[1753530370626,5.253652,3743.8,3743.7,19.3974]
[1753530371840,7.484652,3743.8,3743.7,19.3974]
[1753530373036,4.719602,3743.8,3743.7,19.93147]
[1753530374641,4.719602,3743.8,3743.7,19.91847]
[1753530375440,4.719602,3743.8,3743.7,3.9087]
[1753530375441,10.692452,3743.8,3743.7,3.9087]
[1753530375643,10.692452,3743.8,3743.7,2.3558]
[1753530377635,10.692452,3743.8,3743.7,14.2257]
[1753530378036,1.8209,3743.5,3743.4,1.4451]
[1753530378236,2.76513,3743.3,3743.2,26.071]
[1753530378537,2.76513,3743.3,3743.2,40.2937]
[1753530379135,2.76513,3743.3,3743.2,41.5809]
[1753530380441,6.950602,3743.3,3743.2,41.5809]
[1753530380739,4.719602,3743.3,3743.2,42.11504]
[1753530384642,6.006402,3743.3,3743.2,42.11504]
[1753530384846,6.950602,3743.3,3743.2,42.11504]
[1753530386541,4.719602,3743.3,3743.2,42.11504]
[1753530389447,4.719602,3743.3,3743.2,45.32284]
[1753530390546,7.516732,3743.3,3743.2,25.4288]
[1753530390849,6.572532,3743.3,3743.2,13.295]
[1753530391049,7.464032,3743.3,3743.2,13.295]
[1753530391749,7.464032,3743.3,3743.2,14.2175]
[1753530392048,7.464032,3743.3,3743.2,18.0574]
[1753530392242,7.464032,3743.3,3743.2,19.4206]
[1753530393039,7.464032,3743.3,3743.2,18.0574]
[1753530394545,7.464032,3743.3,3743.2,2.3498]
[1753530394744,7.464032,3743.3,3743.2,14.2155]
[1753530395644,7.464032,3743.3,3743.2,17.1901]
[1753530395846,7.464032,3743.3,3743.2,19.4186]
[1753530398753,6.929902,3743.3,3743.2,19.95274]
[1753530398946,7.464032,3743.3,3743.2,19.4186]
[1753530399148,4.719602,3743.3,3743.2,19.95274]
[1753530401557,3.2078,3744.0,3743.9,2.4126]
[1753530401752,3.74184,3744.0,3743.9,6.1256]
[1753530402347,3.2078,3744.0,3743.9,6.65964]
[1753530403154,3.74183,3744.0,3743.9,6.1256]
[1753530403354,4.36113,3744.0,3743.9,6.1256]
[1753530403552,6.57143,3744.0,3743.9,6.1256]
[1753530404454,7.49173,3744.0,3743.9,13.278]
[1753530404955,12.211332,3744.0,3743.9,13.278]
[1753530406250,12.211332,3744.0,3743.9,15.6278]
[1753530406549,12.211332,3744.0,3743.9,17.1751]
[1753530406755,12.211332,3744.0,3743.9,18.0404]
[1753530406953,12.211332,3744.0,3743.9,19.4036]
[1753530407458,11.291032,3744.0,3743.9,19.4036]
[1753530407762,9.972232,3744.0,3743.9,19.4036]
[1753530408355,8.461432,3744.0,3743.9,19.4036]
[1753530409861,5.253632,3744.0,3743.9,19.4036]
[1753530411363,4.719602,3744.0,3743.9,19.93764]
[1753530415168,4.719602,3744.0,3743.9,24.93764]
[1753530415368,11.0668,3744.8,3744.7,2.4126]
[1753530415569,8.5351,3744.8,3744.7,19.3846]
[1753530416366,9.06901,3744.8,3744.7,19.3846]
[1753530416964,9.98931,3744.8,3744.7,19.3846]
[1753530417564,9.98931,3744.8,3744.7,18.0214]
[1753530418671,14.708912,3744.8,3744.7,13.259]
[1753530419269,14.708912,3744.8,3744.7,14.1815]
[1753530419868,14.708912,3744.8,3744.4,0.9225]
[1753530420067,1.5674,3744.2,3744.1,0.9408]
[1753530420274,6.767,3744.2,3744.1,14.1928]
[1753530420874,6.767,3744.2,3744.1,13.252]
[1753530421973,4.7625,3744.0,3743.9,0.9408]
[1753530422173,5.29653,3744.0,3743.9,14.1918]
[1753530422370,6.233,3744.0,3743.6,1.4361]
[1753530422678,2.99911,3743.4,3743.3,3.8103]
[1753530422872,2.99911,3743.4,3743.3,5.2464]
[1753530423072,5.87861,3743.4,3743.3,19.4352]
[1753530425066,5.3445,3743.4,3743.3,19.4352]
[1753530425272,5.87861,3743.4,3743.3,19.4322]
[1753530425472,10.598212,3743.4,3743.3,19.4322]
[1753530425977,10.598212,3743.4,3743.3,19.96632]
[1753530426371,10.598212,3743.4,3743.3,19.4322]
[1753530426682,10.598212,3743.4,3743.3,19.96632]
[1753530426975,10.064102,3743.4,3743.3,19.96632]
[1753530427475,8.593602,3743.4,3743.3,19.96632]
[1753530427679,9.127712,3743.4,3743.3,19.4322]
[1753530427977,9.127712,3743.4,3743.3,19.4292]
[1753530428379,8.593602,3743.4,3743.3,19.96332]
[1753530429376,10.598212,3743.4,3743.3,6.1872]
[1753530429581,10.064102,3743.4,3743.3,19.96133]
[1753530434285,10.064102,3743.4,3743.3,6.72133]
[1753530434481,10.064102,3743.4,3743.3,19.95833]
[1753530434690,5.288202,3743.4,3743.3,19.95833]
[1753530437988,4.719602,3743.4,3743.3,19.95833]
[1753530438684,6.128602,3743.4,3743.3,19.95833]
[1753530443187,4.719602,3743.4,3743.3,19.95833]
[1753530445090,10.064102,3743.4,3743.3,16.21533]
[1753530445291,10.064102,3743.4,3743.3,19.95833]
[1753530445490,6.697202,3743.4,3743.3,19.95833]
[1753530446790,4.719602,3743.4,3743.3,19.95833]
[1753530450393,7.184602,3743.4,3742.6,3.2078]
[1753530450690,5.34315,3741.2,3737.8,3.40577477]
[1753530450894,0.53484,3738.3,3737.8,0.19797477]
[1753530451193,3.74264,3738.3,3738.2,0.01872534]
[1753530451398,3.74264,3738.3,3737.8,0.19797477]
[1753530451399,0.53489,3737.9,3737.8,0.19797477]
[1753530451694,3.9268216,3737.9,3737.8,4.77e-06]
[1753530451898,8.74269,3737.9,3737.8,4.77e-06]
[1753530452198,8.92693474,3737.9,3737.8,4.77e-06]
[1753530452797,8.74269,3737.9,3737.8,4.77e-06]
[1753530455186,9.70585116,3737.9,3737.8,4.77e-06]
[1753530455393,14.42545316,3737.9,3737.8,4.77e-06]
[1753530456199,8.89056316,3737.9,3737.8,16.34015097]
[1753530456499,8.89056316,3737.9,3737.8,24.90533217]
[1753530456698,8.89056316,3737.9,3737.8,25.44024217]
[1753530457790,8.89056316,3737.9,3737.8,24.90533217]
[1753530458195,8.89056316,3737.9,3737.8,25.44024217]
[1753530458592,10.31065572,3737.9,3737.8,25.44024217]
[1753530459398,8.89056316,3737.9,3737.8,25.44024217]
[1753530460907,8.89056316,3737.9,3737.8,38.21385249]
[1753530461608,10.28736911,3737.9,3737.8,38.19085249]
[1753530462299,8.89056316,3737.9,3737.8,38.19285249]
[1753530462495,10.28665396,3737.9,3737.8,38.19285249]
[1753530462700,8.89056316,3737.9,3737.8,38.19285249]
[1753530463013,8.89056316,3737.9,3737.8,39.05355249]
[1753530463401,10.28665396,3737.9,3737.8,39.04255249]
[1753530464408,8.89056316,3737.9,3737.8,39.04255249]
[1753530464906,10.28578498,3737.9,3737.8,39.04255249]
[1753530465502,10.28567006,3737.9,3737.8,39.04255249]
[1753530466507,8.89056316,3737.9,3737.8,39.04255249]
[1753530468809,5.68276316,3737.9,3737.8,39.04255249]
[1753530470410,7.07807447,3737.9,3737.8,39.04255249]
[1753530470707,5.68276316,3737.9,3737.8,39.04255249]
[1753530471914,5.68276316,3737.9,3737.8,24.85655249]
[1753530472113,5.68276316,3737.9,3737.8,38.93855249]
[1753530472317,6.27416316,3737.9,3737.8,24.85655249]
[1753530472516,5.68276316,3737.9,3737.8,38.93155249]
[1753530473415,7.08115811,3737.9,3737.8,38.93155249]
[1753530474416,5.68276316,3737.9,3737.8,38.93155249]
[1753530475415,7.0835207,3737.9,3737.8,38.93155249]
[1753530476518,5.68276316,3737.9,3737.8,38.93155249]
[1753530477522,7.08684021,3737.9,3737.8,38.93155249]
[1753530478312,5.68276316,3737.9,3737.8,38.93155249]
[1753530478511,7.79176316,3737.9,3737.8,25.4402374]
[1753530478722,5.68276316,3737.9,3737.8,39.4442374]
[1753530478918,5.68276316,3737.9,3737.8,33.6480374]
[1753530479125,0.7709509,3738.7,3738.4,16.3401462]
[1753530479316,4.3591,3738.7,3738.6,6.73899]
[1753530479517,4.3591,3738.7,3738.6,15.96564294]
[1753530479820,3.7754,3738.7,3738.6,15.96564294]
[1753530480220,5.2721,3738.7,3738.6,15.9157362]
[1753530480412,5.2721,3738.7,3738.6,16.9309362]
[1753530480616,5.2721,3738.7,3738.6,30.9239362]
[1753530481824,6.68991793,3738.7,3738.6,30.9239362]
[1753530482322,9.991702,3738.7,3738.6,30.9239362]
[1753530483021,9.991702,3738.7,3738.6,0.8607]
[1753530483214,10.854402,3738.7,3738.6,13.973]
[1753530483924,10.854402,3738.7,3738.5,23.6428]
[1753530484227,9.98219,3738.6,3738.5,14.91801646]
[1753530484424,9.98219,3738.6,3738.5,28.89701646]
[1753530484724,14.98219,3738.6,3738.5,28.89701646]
[1753530484920,14.98219,3738.6,3738.5,28.89301646]
[1753530485423,19.701792,3738.6,3738.5,28.89301646]
[1753530485819,14.701792,3738.6,3738.5,29.81981646]
[1753530486016,14.701792,3738.6,3738.5,28.89301646]
[1753530487021,14.701792,3738.6,3738.5,28.88501646]
[1753530488627,2.5443,3737.8,3737.7,5.93441]
[1753530488921,2.5443,3737.8,3737.7,4.55581]
[1753530489117,3.07921,3737.8,3737.7,17.3921]
[1753530489322,3.07921,3737.8,3737.7,14.8538]
[1753530489523,2.5443,3737.8,3737.7,14.8538]
[1753530489726,2.5443,3737.8,3737.7,16.3709]